Cogmind - Beta 9.4 @@@ ROGUE MODE // 2020.03.01 @ 23:47:22 Player: Trione Result: Destroyed by G-47 Trooper with Particle Gun Performance ------------- Evolutions (3) 1500 Regions Visited (10) 2000 Robots Destroyed (157) 785 Value Destroyed (5370) 5370 Prototype IDs (33) 660 Alien Tech Used (0) 0 Bonus (3036) 3036 TOTAL SCORE: 13351 Bonus ------- High Alert Combat Kills 994 Follower Combat Kills 142 Entered Garrisons 600 Used RIF Installer 1000 Aligned with FarCom 300 Cogmind --------- Core Integrity 0/700 Matter 24/300 Energy 1639/2100 System Corruption 16% Temperature Cool (32) Movement Flying (24) Location -7/Garrison Parts ------- > --- POWER (1) -------- (None) > --- PROPULSION (3) --- Xenon Bombardment Thruster Cooled VTOL Module Cooled VTOL Module > --- UTILITY (7) ------ Large Storage Unit Superbattery Advanced Weight Redist. System Enhanced Optical Array Improved Signal Interpreter Relay Coupler [NC] (35) Relay Coupler [Swarmer] (61) > --- WEAPON (2) ------- (None) > --- INVENTORY (10) --- Light Angular Momentum Engine Improved Cesium-ion Thruster Experimental Sensor Array Advanced EMP Blaster Precision Grenade Launcher Remote Datajack Scythe Spear Peak State ------------ > --- POWER ------------ Light Nuclear Core > --- PROPULSION ------- Xenon Bombardment Thruster Cooled VTOL Module Cooled VTOL Module > --- UTILITY ---------- Large Storage Unit Superbattery Advanced Weight Redist. System Enhanced Optical Array Improved Signal Interpreter Relay Coupler [NC] Relay Coupler [Swarmer] > --- WEAPON ----------- Chainsword Spear > --- INVENTORY -------- Light Angular Momentum Engine Xenon Bombardment Thruster Improved Cesium-ion Thruster Experimental Sensor Array Advanced EMP Blaster Precision Grenade Launcher Remote Datajack Scythe [Rating: 52] Favorites ----------- Power Light Angular Momentum Engine Engine Light Angular Momentum Engine Power Core Light Nuclear Core Propulsion Compact Wheel Treads Armored Treads Wheel Compact Wheel Hover Unit Improved Airjet Flight Unit Cooled VTOL Module Utility High-capacity Storage Unit Device Improved Heat Sink Storage High-capacity Storage Unit Processor Enhanced Optical Array Hackware Relay Coupler [NC] Protection Improved Light Armor Plating Weapon Heavy Assault Rifle Energy Gun Precision Shock Rifle Energy Cannon Heavy Particle Cannon Ballistic Gun Heavy Assault Rifle Launcher Precision Grenade Launcher Special Weapon Remote Datajack Slashing Weapon Chainsword Piercing Weapon Spear Build | -11 -10 -10 -10 -9 -8 -8 -7 -7 -7 -7 ------- Run | Scr Mat Min Exi Min Mat Gar Fac Gar Fac Gar Slots Evolved 6 | . . . . . 4 . 2 . . . Power . | . . . . . . . . . . . Propulsion 1 | . . . . . . . 1 . . . Utility 5 | . . . . . 4 . 1 . . . Weapon . | . . . . . . . . . . . Parts Attached 274 | 7 20 8 . . 40 6 117 13 54 9 Power 17 | 1 . 1 . . 4 1 6 . 3 1 Engine 14 | 1 . 1 . . 4 1 5 . 1 1 Core 3 | . . . . . . . 1 . 2 . Reactor . | . . . . . . . . . . . Propulsion 70 | 2 13 5 . . 15 1 21 . 10 3 Treads 25 | . 6 2 . . 9 1 6 . 1 . Leg . | . . . . . . . . . . . Wheel 37 | 2 7 3 . . 6 . 14 . 5 . Hover 1 | . . . . . . . 1 . . . Flight 7 | . . . . . . . . . 4 3 Utility 81 | 2 4 . . . 12 . 38 3 20 2 Device 26 | . . . . . 5 . 13 1 7 . Storage 16 | 2 4 . . . 2 . 3 . 4 1 Processor 2 | . . . . . . . 1 . 1 . Hackware 5 | . . . . . . . 1 1 2 1 Protection 32 | . . . . . 5 . 20 1 6 . Artifact . | . . . . . . . . . . . Weapon 106 | 2 3 2 . . 9 4 52 10 21 3 Energy Gun 6 | 1 . . . . 1 1 1 1 1 . Energy Cannon 34 | . . . . . 2 . 24 3 5 . Ballistic Gun 15 | 1 2 2 . . 4 3 2 . 1 . Ballistic Cannon . | . . . . . . . . . . . Launcher 11 | . . . . . . . 5 3 2 1 Special Weapon 11 | . . . . . . . 6 1 4 . Impact Weapon . | . . . . . . . . . . . Slashing Weapon 22 | . 1 . . . 2 . 11 1 6 1 Piercing Weapon 7 | . . . . . . . 3 1 2 1 Special Melee Weapon . | . . . . . . . . . . . Unidentified Prototypes 8 | . . . . . 1 . 4 . 2 1 Parts Lost 39 | . 2 . . . 12 5 14 . 3 3 Power 4 | . . . . . 1 1 1 . . 1 Propulsion 13 | . 1 . . . 2 1 6 . 2 1 Utility 10 | . . . . . 5 . 5 . . . Weapon 12 | . 1 . . . 4 3 2 . 1 1 Highest Loss Streak 7 | . 1 . . . 7 2 5 . 1 3 Average Slot Usage (%) 98 | . 100 100 100 100 97 99 99 100 98 86 Engine 7 | . 14 14 14 14 8 8 6 . 3 . Core 1 | . . . . . . . . 7 3 5 Treads 7 | . 5 . . . 9 18 7 7 6 . Wheel 13 | . 22 27 28 28 8 . 14 15 13 . Device 7 | . . . . . 12 18 7 4 4 7 Storage 26 | . 28 28 28 28 30 36 23 23 22 8 Processor 3 | . . . . . . . 6 7 7 15 Hackware 1 | . . . . . . . . 3 6 15 Protection 9 | . . . . . 8 . 15 13 11 . Energy Cannon 3 | . . . . . 3 . 6 4 1 . Ballistic Gun 8 | . 21 28 28 28 11 14 1 . . . Slashing Weapon 3 | . 1 . . . 1 1 4 1 5 6 Naked Turns . | . . . . . . . . . . . Heaviest Build 148 | 15 73 77 77 77 101 98 148 129 126 30 Greatest Support 60 | 32 32 26 26 26 40 40 60 26 40 30 Greatest Overweight (x) 11 | . 2 2 2 2 5 2 5 4 11 1 Average Overweight (x) 2 | . 1 2 2 2 2 2 3 4 3 . Largest Inventory Capacity 34 | 8 20 20 20 20 26 26 28 28 34 10 Average Capacity 24 | 6 16 20 20 20 25 26 26 28 26 10 Most Carried 28 | 8 19 20 20 20 26 26 28 28 28 10 Average Carried 23 | 3 12 19 19 20 24 25 26 27 26 9 Final Capacity 28 | 8 20 20 20 20 26 26 28 28 10 10 Final Carried 28 | 8 19 20 20 20 26 25 28 28 10 8 Class Distribution -------------------- 77% | Hauler-Mutant 11% | Bothacker-Mutant 5% | Mutant 3% | Scavenger-Mutant Dominant Class ---------------- Mutant | -10/Materials Hauler-Mutant | -10/Mines Hauler-Mutant | -10/Exiles Hauler-Mutant | -9/Mines Hauler-Mutant | -8/Materials Hauler-Mutant | -8/Garrison Hauler-Mutant | -7/Factory Hauler-Mutant | -7/Garrison Bothacker-Mutant | -7/Factory Sprinter | -7/Garrison Resources | -11 -10 -10 -10 -9 -8 -8 -7 -7 -7 -7 ----------- Run | Scr Mat Min Exi Min Mat Gar Fac Gar Fac Gar Matter Collected 4339 | 279 252 200 . . 898 377 1467 258 540 68 Remotely 329 | . . . . . 329 . . . . . Salvage Created 6694 | 71 503 224 . . 1328 465 2945 549 541 68 Parts 346 | 8 29 17 . . 72 24 142 20 30 4 Haulers Intercepted 12 | . 2 . . . 5 . 5 . . . Recyclers Shooed 7 | . 1 1 . . 1 . 4 . . . Parts Field Recycled . | . . . . . . . . . . . Retrieved Matter . | . . . . . . . . . . . Parts Self-Destructed . | . . . . . . . . . . . Prevented . | . . . . . . . . . . . Kills | -11 -10 -10 -10 -9 -8 -8 -7 -7 -7 -7 ------- Run | Scr Mat Min Exi Min Mat Gar Fac Gar Fac Gar Combat Hostiles Destroyed 110 | . 8 3 . . 23 11 41 13 10 1 Melee 13 | . . . . . . . 8 . 4 1 Guns 45 | . 8 3 . . 14 11 5 3 1 . Cannons 24 | . . . . . 9 . 11 3 1 . AOE 23 | . . . . . . . 15 6 2 . Classes Destroyed 14 | 2 3 2 . . 3 . 4 . . . Worker 8 | . . . . . . . 7 . 1 . Builder 4 | . . 1 . . . . 3 . . . Tunneler 3 | 1 . . . . . . 1 . 1 . Hauler 12 | . 2 . . . 5 . 5 . . . Recycler 16 | 1 . 1 . . 2 . 12 . . . Mechanic 1 | . . . . . . . 1 . . . Watcher 3 | . 1 . . . . . 1 . 1 . Swarmer 16 | . . . . . 7 3 6 . . . Grunt 54 | . 8 1 . . 9 8 13 11 4 . Brawler 5 | . . . . . 1 . 4 . . . Duelist 5 | . . . . . 1 . 4 . . . Sentry 20 | . . 2 . . 5 . 7 1 4 1 Hunter 3 | . . . . . . . 1 1 1 . Programmer 7 | . . . . . . . 6 . 1 . Best Kill Streak 15 | 2 4 2 . . 5 3 15 4 5 1 Combat Bots Only 8 | . 4 2 . . 5 3 8 8 3 1 Max Kills in Single Turn 5 | 1 1 1 . . 1 1 5 3 2 1 Gunslinging . | . . . . . . . . . . . Exploded 3 | . . . . . . . 3 3 1 . Melee 1 | . . . . . . . 1 . 1 1 Uniques/NPCs Destroyed . | . . . . . . . . . . . Combat | -11 -10 -10 -10 -9 -8 -8 -7 -7 -7 -7 -------- Run | Scr Mat Min Exi Min Mat Gar Fac Gar Fac Gar Damage Taken 8763 | . 428 264 . . 2036 1113 3058 395 1035 434 Core 1322 | . 80 71 . . 323 142 306 142 108 150 Absorbed by Shields 62 | . . . . . . . . . . 62 Core Remaining (%) 51 | 100 . . . 39 . 15 . . . . Volleys Fired 415 | 9 52 19 . . 104 61 125 19 24 2 Largest 2 | 2 2 2 . . 2 2 2 2 2 1 Hottest 155 | 60 60 46 . . 135 79 155 124 132 36 Shots Fired 735 | 18 103 38 . . 200 121 183 36 34 2 Gun 479 | 18 103 38 . . 138 121 42 12 7 . Cannon 206 | . . . . . 62 . 117 13 14 . Launcher 29 | . . . . . . . 15 8 4 2 Special 21 | . . . . . . . 9 3 9 . Kinetic 417 | 9 84 38 . . 133 108 42 . 3 . Thermal 181 | 9 19 . . . 62 13 78 . . . Explosive 29 | . . . . . . . 15 8 4 2 Electromagnetic 87 | . . . . . 5 . 39 25 18 . Robot Hit Streak 22 | 5 22 10 . . 16 9 14 13 13 . Robot Miss Streak 9 | 3 9 2 . . 2 4 5 2 4 . Penetration Max . | . . . . . . . . . . . Secondary Targets 3 | . . . . . 1 2 . . . . Max Gunslinging Chain 1 | . . . . . 1 1 . . . . Shots Hit Robots 553 | 12 72 30 . . 147 76 160 19 36 1 Core Hits 288 | 4 29 13 . . 51 23 120 26 21 1 Critical Hits 5 | . . . . . 1 1 2 . 1 . Critical Kills 2 | . . . . . 1 1 . . . . Critical Parts Destroyed 3 | . . . . . . . 2 . 1 . Melee Attacks 150 | . 2 . . . 19 5 85 . 29 10 Impact . | . . . . . . . . . . . Slashing 117 | . 2 . . . 19 5 69 . 14 8 Piercing 33 | . . . . . . . 16 . 15 2 Sneak Attacks 8 | . . . . . 1 . 7 . . . Combat Hostiles . | . . . . . . . . . . . Follow-up Attacks 7 | . . . . . . . 5 . 2 . Damage Inflicted 14981 | 124 667 400 . . 2757 1009 7539 1159 1280 46 Guns 4572 | 124 642 400 . . 1562 1009 519 206 110 . Cannons 4012 | . . . . . 1118 . 2360 203 331 . Explosions 4234 | . . . . . . . 3028 750 456 . Melee 2154 | . 25 . . . 77 . 1623 . 383 46 Ramming 9 | . . . . . . . 9 . . . Kinetic 3839 | 45 443 400 . . 1481 909 519 . 42 . Thermal 3174 | 79 199 . . . 1118 100 1618 60 . . Explosive 4005 | . . . . . . . 2859 690 456 . Electromagnetic 1800 | . . . . . 81 . 911 409 399 . Impact . | . . . . . . . . . . . Slashing 1206 | . 25 . . . 77 . 1026 . 78 . Piercing 948 | . . . . . . . 597 . 305 46 Highest Corruption 16 | . . . . . . . 16 16 16 16 Average Corruption 10 | . . . . . . . 4 16 16 16 Corruption Purged . | . . . . . . . . . . . Effects 181 | . . . . . . . 52 22 99 8 Message Errors 33 | . . . . . . . 9 6 17 1 Matter Fused 22 | . . . . . . . 3 4 14 1 Heat Flow Errors 11 | . . . . . . . 2 1 8 . Energy Discharges 22 | . . . . . . . 6 1 15 . Parts Rejected 3 | . . . . . . . 3 . . . Data Loss (minor) 23 | . . . . . . . 6 . 16 1 Data Loss (major) 8 | . . . . . . . 3 . 5 . Misfires 2 | . . . . . . . 1 1 . . Alerts 2 | . . . . . . . . 1 1 . Misdirections 24 | . . . . . . . 2 3 17 2 Targeting Errors 30 | . . . . . . . 16 5 6 3 Weapon Failures 1 | . . . . . . . 1 . . . Overload Shots . | . . . . . . . . . . . Overflow Damage 482 | . . . . . 1 . 440 30 11 . Projectiles 81 | . . . . . 1 . 80 . . . Explosions 168 | . . . . . . . 127 30 11 . Melee 233 | . . . . . . . 233 . . . Knockbacks . | . . . . . . . . . . . Impact . | . . . . . . . . . . . Kinetic . | . . . . . . . . . . . Secondary . | . . . . . . . . . . . Self-Inflicted Damage 220 | . . . . . . . 220 . . . Shots 6 | . . . . . . . 6 . . . Rammed 1 | . . . . . . . 1 . . . Targets Rammed 1 | . . . . . . . 1 . . . Kicked . | . . . . . . . . . . . Crushed . | . . . . . . . . . . . Highest Temperature 372 | 40 67 13 . . 221 . 372 366 232 5 Average Temperature 79 | 23 26 5 . . 80 . 83 163 81 5 Received Heat Transfer 2901 | . 240 99 . . 720 585 633 147 264 213 Effects 2 | . . . . . . . 1 1 . . Shutdowns 1 | . . . . . . . . 1 . . Interference 1 | . . . . . . . 1 . . . Siege Activations . | . . . . . . . . . . . Robots Corrupted 5 | . . . . . . . 2 1 2 . Combat Hostiles 5 | . . . . . . . 2 1 2 . Parts Fried 14 | . . . . . 1 . 9 2 2 . Impact Corruptions . | . . . . . . . . . . . Robots Melted . | . . . . . . . . . . . Combat Hostiles . | . . . . . . . . . . . Parts Melted 2 | . . . . . 1 1 . . . . Heat Transferred 4955 | 175 450 . . . 1739 259 2282 50 . . Parts Sabotaged . | . . . . . . . . . . . Parts Stolen . | . . . . . . . . . . . Parts Stripped . | . . . . . . . . . . . Power Chain Reactions 3 | . . . . . . . 2 1 . . Missiles Intercepted . | . . . . . . . . . . . Alert | -11 -10 -10 -10 -9 -8 -8 -7 -7 -7 -7 ------- Run | Scr Mat Min Exi Min Mat Gar Fac Gar Fac Gar Peak Influence 1163 | 10 247 64 . . 240 570 1163 1139 704 394 Average Influence 307 | 3 101 33 . . 104 361 362 1037 492 372 Maximum Alert Level 4 | . 1 . . . 1 2 4 4 3 1 Low Security (%) 44 | 100 80 100 . 100 89 23 30 . . . Level 1 27 | . 20 . . . 10 29 47 . 24 100 Level 2 19 | . . . . . . 46 6 . 73 . Level 3 6 | . . . . . . . 13 44 2 . Level 4 2 | . . . . . . . 2 55 . . Level 5 . | . . . . . . . . . . . High Security . | . . . . . . . . . . . Max Security . | . . . . . . . . . . . Squads Dispatched 21 | . . . . . 3 . 14 . 4 . Investigation 1 | . . . . . 1 . . . . . Extermination 7 | . . . . . . . 5 . 2 . Reinforcement 7 | . . . . . 2 . 4 . 1 . Assault 3 | . . . . . . . 2 . 1 . Garrison 3 | . . . . . . . 3 . . . Intercept . | . . . . . . . . . . . Construction Impeded 2 | . . . . . . . 2 . . . Haulers Reinforced 1 | . . . . . . . 1 . . . Stealth | -11 -10 -10 -10 -9 -8 -8 -7 -7 -7 -7 --------- Run | Scr Mat Min Exi Min Mat Gar Fac Gar Fac Gar Distress Signals 9 | . 1 1 . . 3 . 3 . 1 . Communications Jammed . | . . . . . . . . . . . Distress Signals . | . . . . . . . . . . . Times Spotted 220 | . 17 6 . . 63 13 66 18 20 17 Peak Tracking Total 16 | . 7 2 . . 8 3 6 5 5 16 Tactical Retreats 27 | . 1 3 . . 16 1 2 . 3 1 Traps | -11 -10 -10 -10 -9 -8 -8 -7 -7 -7 -7 ------- Run | Scr Mat Min Exi Min Mat Gar Fac Gar Fac Gar Traps Triggered 13 | . . . . . 1 3 3 4 1 1 Indirectly . | . . . . . . . . . . . Trap Hack Attempts . | . . . . . . . . . . . Triggered . | . . . . . . . . . . . Disarmed . | . . . . . . . . . . . Reprogrammed . | . . . . . . . . . . . Reused . | . . . . . . . . . . . Traps Extracted . | . . . . . . . . . . . Installed . | . . . . . . . . . . . Triggered . | . . . . . . . . . . . Machines | -11 -10 -10 -10 -9 -8 -8 -7 -7 -7 -7 ---------- Run | Scr Mat Min Exi Min Mat Gar Fac Gar Fac Gar Machines Disabled 9 | . . . . . 2 1 6 . . . Max in Single Turn 2 | . . . . . 1 1 2 . . . Garrison Access 2 | . . . . . . . 1 . 1 . Garrison Relay 1 | . . . . . . 1 . . . . Machines Sabotaged . | . . . . . . . . . . . Garrisons Compromised . | . . . . . . . . . . . Overloaded Fab Kills . | . . . . . . . . . . . Fab Network Shutdowns . | . . . . . . . . . . . Hacking | -11 -10 -10 -10 -9 -8 -8 -7 -7 -7 -7 --------- Run | Scr Mat Min Exi Min Mat Gar Fac Gar Fac Gar Machines Accessed 38 | . 5 . 1 . 6 . 15 . 11 . Terminals 24 | . 4 . . . 4 . 8 . 8 . Fabricators 2 | . . . . . . . 2 . . . Repair Stations . | . . . . . . . . . . . Recycling Units 4 | . 1 . . . 1 . 1 . 1 . Scanalyzers 2 | . . . . . . . 2 . . . Garrison Access 5 | . . . . . 1 . 2 . 2 . Total Hacks 76 | . 9 . 1 . 12 . 33 . 21 . Successful 39 | . 5 . 1 . 7 . 18 . 8 . Failed 37 | . 4 . . . 5 . 15 . 13 . Catastrophic 5 | . . . . . 1 . 3 . 1 . Database Lockouts . | . . . . . . . . . . . Manual 53 | . 7 . 1 . 8 . 25 . 12 . Terminals 53 | . 7 . . . 9 . 20 . 17 . Fabricators 4 | . . . . . . . 4 . . . Repair Stations . | . . . . . . . . . . . Recycling Units 6 | . 2 . . . 1 . 1 . 2 . Scanalyzers 4 | . . . . . . . 4 . . . Garrison Access 8 | . . . . . 2 . 4 . 2 . Terminal Hacks 9 | . 2 . 1 . 2 . 2 . 2 . Terminal Index 1 | . . . . . . . 1 . . . Fabricator Index 1 | . . . . . . . . . 1 . Recall Investigation 1 | . . . . . 1 . . . . . Recall Reinforcements 1 | . . . . . . . . . 1 . Hauler Manifests 2 | . 1 . . . 1 . . . . . Zone Layout 2 | . 1 . . . . . 1 . . . EX-Prototype ID Bank 1 | . . . 1 . . . . . . . Fabricator Hacks 1 | . . . . . . . 1 . . . Network Status 1 | . . . . . . . 1 . . . Repair Station Hacks . | . . . . . . . . . . . Recycling Unit Hacks 4 | . 1 . . . 1 . 1 . 1 . Retrieve Components 4 | . 1 . . . 1 . 1 . 1 . Scanalyzer 2 | . . . . . . . 2 . . . Insert Component 1 | . . . . . . . 1 . . . Analyze 1 | . . . . . . . 1 . . . Garrison Access Hacks 5 | . . . . . 1 . 2 . 2 . Unlock Access 3 | . . . . . 1 . 1 . 1 . Seal Access 2 | . . . . . . . 1 . 1 . Unauthorized Hacks 52 | . 6 . . . 7 . 28 . 11 . Terminals 16 | . 2 . . . 3 . 8 . 3 . Track 1 | . 1 . . . . . . . . . Assimilate 4 | . . . . . . . 4 . . . Botnet 8 | . 1 . . . 2 . 3 . 2 . Operators 3 | . . . . . 1 . 1 . 1 . Fabricators 1 | . . . . . . . 1 . . . Haulers 1 | . . . . . . . 1 . . . Repair Stations . | . . . . . . . . . . . Recycling Units . | . . . . . . . . . . . Scanalyzers . | . . . . . . . . . . . Garrison Access 1 | . . . . . . . 1 . . . Reprogram 1 | . . . . . . . 1 . . . Data Cores Recovered . | . . . . . . . . . . . Used . | . . . . . . . . . . . Hacking Detections 30 | . 4 . . . 5 . 13 . 8 . Full Trace Events . | . . . . . . . . . . . Feedback Events . | . . . . . . . . . . . Feedback Blocked . | . . . . . . . . . . . Robot Schematics Acquired . | . . . . . . . . . . . Robots Built . | . . . . . . . . . . . Matter . | . . . . . . . . . . . Time . | . . . . . . . . . . . Total Robot Build Rating . | . . . . . . . . . . . Part Schematics Acquired 1 | . . . . . . . 1 . . . Parts Built . | . . . . . . . . . . . Matter . | . . . . . . . . . . . Time . | . . . . . . . . . . . Total Part Build Rating . | . . . . . . . . . . . Parts Repaired . | . . . . . . . . . . . Time . | . . . . . . . . . . . Parts Recycled . | . . . . . . . . . . . Recycled Matter . | . . . . . . . . . . . Retrieved Matter . | . . . . . . . . . . . Retrieved Components 15 | . 6 . . . 3 . 6 . . . Parts Scanalyzed 1 | . . . . . . . 1 . . . Part Schematics Acquired 1 | . . . . . . . 1 . . . Parts Damaged . | . . . . . . . . . . . Bothacking | -11 -10 -10 -10 -9 -8 -8 -7 -7 -7 -7 ------------ Run | Scr Mat Min Exi Min Mat Gar Fac Gar Fac Gar Used RIF Installer 2 | . . . . . . 1 . 1 . . Coupler Efficiency 1 | . . . . . . . . 1 . . Robots Hacked 13 | . . . . . . . 7 2 4 . Non-combat 10 | . . . . . . . 6 . 4 . Combat 3 | . . . . . . . 1 2 . . Robot Hacks Applied 14 | . . . . . . . 7 2 5 . find_chute 1 | . . . . . . . 1 . . . ignore_repairs 4 | . . . . . . . 4 . . . find_fabricator 1 | . . . . . . . . . 1 . drop_inventory 2 | . . . . . . . . . 2 . find_recycling 1 | . . . . . . . 1 . . . map_route 2 | . . . . . . . . . 2 . overload_power 1 | . . . . . . . . 1 . . formatsys_high 2 | . . . . . . . 1 1 . . Relay Couplers Released 6 | . . . . . . 3 3 . . . Machine Destruction 3 | . . . . . . 3 . . . . Programmers 3 | . . . . . . . 3 . . . Attached 5 | . . . . . . . 1 1 2 1 Robots Rewired 1 | . . . . . . . 1 . . . Allies Hacked . | . . . . . . . . . . . Hacks Repelled . | . . . . . . . . . . . Allies | -11 -10 -10 -10 -9 -8 -8 -7 -7 -7 -7 -------- Run | Scr Mat Min Exi Min Mat Gar Fac Gar Fac Gar Total Allies 10 | . . . . 3 . . 6 1 . . Largest Group 3 | . . . . 3 3 . 2 2 . . Highest-Rated Group 52 | . . . . 40 40 . 52 32 . . Highest-Rated Ally 26 | . . . . 16 16 . 26 16 . . Total Orders 11 | . . . . . . . 11 . . . STAY 2 | . . . . . . . 2 . . . GOTO 4 | . . . . . . . 4 . . . FOLLOW 5 | . . . . . . . 5 . . . Ally Attacks 47 | . . . . . 20 . 8 19 . . Total Damage 596 | . . . . . 203 . 158 235 . . Kills 8 | . . . . . 2 . 4 2 . . Allies Corrupted . | . . . . . . . . . . . Allies Melted 1 | . . . . . 1 . . . . . Intel | -11 -10 -10 -10 -9 -8 -8 -7 -7 -7 -7 ------- Run | Scr Mat Min Exi Min Mat Gar Fac Gar Fac Gar Robot Analysis Total . | . . . . . . . . . . . Derelict Logs Recovered 2 | . . 2 . . . . . . . . Drone Launches . | . . . . . . . . . . . Drone Recoveries . | . . . . . . . . . . . Exploration | -11 -10 -10 -10 -9 -8 -8 -7 -7 -7 -7 ------------- Run | Scr Mat Min Exi Min Mat Gar Fac Gar Fac Gar Turns Passed 9889 | 94 560 773 397 33 1948 787 3166 299 1712 120 Spaces Moved 5838 | 52 347 593 359 27 898 254 1650 145 1340 173 Core 2 | 2 . . . . . . . . . . Treads 738 | . . . . . 346 254 112 . 26 . Legs . | . . . . . . . . . . . Wheels 4570 | 50 347 593 359 27 552 . 1538 145 959 . Hover . | . . . . . . . . . . . Flight 528 | . . . . . . . . . 355 173 Fastest Speed 24 | 50 100 110 110 110 110 210 130 130 30 24 Average Speed 126 | 98 105 110 110 110 155 210 137 130 106 34 Slowest Speed 270 | 100 110 110 110 110 210 210 270 130 200 100 Overloaded Moves 5 | . . . . . . . . . . 5 Propulsion Burnouts . | . . . . . . . . . . . Robots Hopped 2 | . . . . . . . . . 2 . Cave-ins Triggered . | . . . . . . . . . . . Exploration Rate (%) 46 | 4 62 95 70 10 60 53 47 37 45 32 Regions Visited 10 Branch Regions 3 Pre-discovered Areas . | . . . . . . . . . . . Known Exits Taken 3 | . . . . . 1 . 1 . 1 . Unknown Exits Taken 5 | 1 1 1 1 1 . . . . . . Scrap Searched 1 | . . 1 . . . . . . . . Spaces Dug 111 | . 1 . . . 14 . 65 . 19 12 Terrain Destroyed 215 | . 1 . . . 24 . 123 12 33 22 Melee 66 | . 1 . . . 14 . 34 . 12 5 Projectile 11 | . . . . . 10 . 1 . . . AOE 138 | . . . . . . . 88 12 21 17 Actions | -11 -10 -10 -10 -9 -8 -8 -7 -7 -7 -7 --------- Run | Scr Mat Min Exi Min Mat Gar Fac Gar Fac Gar Total 7393 | 75 442 680 362 30 1213 378 2218 219 1559 217 Wait 460 | . 7 49 . 4 110 44 172 2 56 16 Move 5824 | 51 346 592 358 26 898 252 1649 143 1336 173 Hop 2 | . . . . . . . . . 2 . Pick Up 116 | 8 12 5 2 . 29 4 37 5 14 . Fast Attach 28 | 7 . . . . 3 . 12 . 5 1 Attach 58 | . 2 . . . 13 5 21 1 12 4 Detach 21 | . . . . . . . 6 1 11 3 Swap 188 | . 18 8 . . 24 1 84 12 37 4 Drop 101 | . 3 7 2 . 13 . 34 4 37 1 Fire 415 | 9 52 19 . . 104 61 125 19 24 2 Melee 137 | . 2 . . . 19 5 77 . 25 9 Ram 1 | . . . . . . . 1 . . . Kick . | . . . . . . . . . . . Crush . | . . . . . . . . . . . Escape Stasis 42 | . . . . . . 6 . 32 . 4 Rewire . | . . . . . . . . . . . Trap . | . . . . . . . . . . . Miscellaneous . | . . . . . . . . . . . Route ------- -11/Scrapyard -10/Materials (discovered 3 exits: [*Mat x2] / [*Min]) -10/Mines (discovered 3 exits: [*Mat x2] / *Exi) -10/Exiles -9/Mines -8/Materials (discovered 3 exits: *Fac x2 / Gar) -8/Garrison (discovered 2 exits: *Fac x2) -7/Factory (discovered 4 exits: [*Fac x2] / Low / Gar) -7/Garrison -7/Factory (discovered 6 exits: [*Fac x3] / *Low x2 / Gar) -7/Garrison History --------- Turn | Location | Event 17 | -11/Scrapyard | Discovered new exit (range 16) 95 | -11/Scrapyard | Entered Materials 322 | -10/Materials | Build established: Mutant 446 | -10/Materials | Discovered new exit (range 6) 502 | -10/Materials | Discovered new exit (range 7) 585 | -10/Materials | Discovered new exit (range 15) 655 | -10/Materials | Entered Mines 691 | -10/Mines | Met a Derelict bent on vengeance 721 | -10/Mines | Discovered new exit (range 8) 827 | -10/Mines | Learned Materials emergency access door positions 832 | -10/Mines | Build established: Hauler-Mutant 920 | -10/Mines | Discovered new exit (range 8) 987 | -10/Mines | Core integrity fell below 50% 1282 | -10/Mines | Found a damaged Exp. Sensor Array with a note attached 1293 | -10/Mines | Found Prototype Device 1361 | -10/Mines | Learned Materials garrison access intel 1423 | -10/Mines | Deemed a non-threat by the Exiles lab entrance 1424 | -10/Mines | Discovered new exit (range 5) 1428 | -10/Mines | Entered Exiles 1456 | -10/Exiles | Met 8R-AWN 1474 | -10/Exiles | Met EX-HEX 1509 | -10/Exiles | Met EX-BIN 1523 | -10/Exiles | Met EX-DEC 1672 | -10/Exiles | Aligned with FarCom system 1673 | -10/Exiles | Given EX-Vault access code 1699 | -10/Exiles | Opened EX-Vault 1709 | -10/Exiles | Found Superbattery 1713 | -10/Exiles | Found Supersonic Drone Bay 1737 | -10/Exiles | Warned to stay clear of 0b10 Research branches 1815 | -10/Exiles | Discovered new exit (range 10) 1825 | -10/Exiles | Stole two prototypes: Superbattery, Supersonic Drone Bay 1825 | -10/Exiles | Entered Mines 1828 | -9/Mines | Assisted by bots powering up and referring to "LRC-V3" 1844 | -9/Mines | Discovered new exit (range 9) 1858 | -9/Mines | Entered Materials 1858 | -8/Materials | Accompanied by 3 allies 1858 | -8/Materials | Evolved 4 slots: Utility x4 1860 | -8/Materials | Loaded intel: 1 garrison access location 2376 | -8/Materials | Discovered new exit (range 4) 2909 | -8/Materials | Lost 7 parts (1n4u2w) 3258 | -8/Materials | Discovered new exit (range 15) 3310 | -8/Materials | Core integrity fell below 50% 3368 | -8/Materials | Lost 3 parts (1p2w) 3806 | -8/Materials | Identified exit to Garrison 3806 | -8/Materials | Entered Garrison 3894 | -8/Garrison | Garrison Relay disabled 3975 | -8/Garrison | Triggered checkpoint 4245 | -8/Garrison | Discovered new exit (range 12) 4316 | -8/Garrison | Core integrity fell below 20% 4422 | -8/Garrison | Triggered checkpoint 4541 | -8/Garrison | Discovered new exit (range 15) 4583 | -8/Garrison | Installed Relay Interface Framework 4593 | -8/Garrison | Entered Factory 4593 | -7/Factory | Evolved 2 slots: Propulsion x1, Utility x1 4595 | -7/Factory | FarCom data flow suspended 4596 | -7/Factory | Identified Exp. Sensor Array 5505 | -7/Factory | Discovered new exit (range 8) 6153 | -7/Factory | Discovered new exit (range 21) 6638 | -7/Factory | Garrison activated, responded to threat 7255 | -7/Factory | Lost 3 parts (2n1u) 7290 | -7/Factory | Destroyed 8 combat bots 7393 | -7/Factory | First assault squad dispatched 7447 | -7/Factory | System corruption reached 10% 7479 | -7/Factory | Lost 5 parts (1p2n2u) 7547 | -7/Factory | P-60 Hacker assimilated allied Commando 4a 7670 | -7/Factory | Discovered new exit (range 16) 7757 | -7/Factory | Identified exit to Garrison 7759 | -7/Factory | Entered Garrison 7759 | -7/Garrison | Accompanied by 2 allies 7818 | -7/Garrison | Triggered checkpoint 7822 | -7/Garrison | Triggered checkpoint 7881 | -7/Garrison | Core integrity fell below 50% 7882 | -7/Garrison | Triggered checkpoint 7886 | -7/Garrison | Destroyed 8 combat bots 7890 | -7/Garrison | Triggered checkpoint 7987 | -7/Garrison | Discovered new exit (range 11) 8018 | -7/Garrison | Expanded RIF knowledge: Coupler Efficiency 8058 | -7/Garrison | Entered Factory 8331 | -7/Factory | Build established: Bothacker-Mutant 8842 | -7/Factory | Discovered new exit (range 6) 9288 | -7/Factory | Discovered new exit (range 16) 9442 | -7/Factory | Build established: Scavenger-Mutant 9658 | -7/Factory | First assault squad dispatched 9674 | -7/Factory | Discovered new exit (range 9) 9676 | -7/Factory | Identified exit to Lower Caves 9696 | -7/Factory | Discovered new exit (range 22) 9708 | -7/Factory | Discovered exit to Lower Caves (range 22) 9770 | -7/Factory | Identified exit to Garrison 9770 | -7/Factory | Entered Garrison 9807 | -7/Garrison | Core integrity fell below 20% 9884 | -7/Garrison | Triggered checkpoint 9884 | -7/Garrison | Triggered checkpoint 9890 | -7/Garrison | Destroyed by G-47 Trooper with Particle Gun Last Messages --------------- 09818_ The unstable cave ceiling collapses. 09853_ System corrupted: Component data lost. 09870_ Lgt. Nuclear Core destroyed. 09870_ Dropped Superbattery. 09871_ Extracted 96 energy. 09871_ Acquired Superbattery. 09876_ Identified Imp. Cesium-ion Thruster. 09884_ Beams of light sweep through the air. An alarm sounds. 09884_ Triggered Stasis Trap. 09884_ A bubble of rippling energy engulfs the area. 09884_ Field strength at 95. 09884_ Beams of light sweep through the air. An alarm sounds. 09884_ Field strength at 88. 09885_ Field strength at 69. 09886_ Chainsword destroyed. 09886_ Xenon Bombardment Thruster destroyed. 09887_ Field strength at 29. 09888_ Field strength at 7. 09888_ Stasis field depleted. 09889_ K,KGYOVBSXP29V:FCW5=1 Map ----- +----------------------------------------------------+ | ????????# #??????????????????????????????????????? | | ????????# #??????????????????????????????????????? | | ????????# #??????????????????????????????????????? | | ????????# #??????????????????????????????????????? | | ????????# #??????????????????????????????????????? | | ????????# #??????????????????????????????????????? | | ????????# #??????????????????????????????????????? | | ????????# #??????????????????????????????????????? | | ????????# #??????????????????????????????????????? | | ######### ##########?????????????????????????????? | | #?????????????????????????????? | | #?????????????????????????????? | | #?????????????????????????????? | | #"""##### ###### #?????????????????????????????? | | ????????# #????# ###???????????????????????????? | | ????????# #????# #???????????????????????????? | | ????????# ###### ###???????????????????????????? | | ????????# # #???????????????????????????? | | ????????####### #???????????????????????????? | | ????????# #???# ##???????????????????????????? | | ????????# #???## ##????????#???????????????????? | | ????????# #????# #######?? #???????????????????? | | ????????# #???## # gg #? #???????????????????? | | ????????# #???# ## ## ##??????????????????? | | ######### ###### l #######????????????? | | Y @ #????????? | | ########### ### ^ #????????? | | ??????????# ## #gg ## ###########????????? | | ??????????# ####g ## #? #??????????????????? | | ??????????# # g "??????????????????? | | ??????????#### "??????????????????? | | ?????????????# "??????????????????? | | ?????????????# "??????????????????? | | ?????????????### ## ## #??????????????????? | | ???????????????# ## #? #??????????????????? | | ???????????????# #??????????????????? | | ???????????????# #??????????????????? | | ???????????????# #??????????????????? | | ???????????????## ##""""## ##??????????????????? | | ????????????????# #??????? #???????????????????? | | ????????????????# #???????? #???????????????????? | | ????????????????# #???????? #???????????????????? | | ????????????????# #?????????????????????????????? | | ????????????????# #?????????????????????????????? | | ????????????????? #?????????????????????????????? | | ????????????????? #?????????????????????????????? | | ????????????????? ??????????????????????????????? | | ?????????????????????????????????????????????????? | | ?????????????????????????????????????????????????? | | ?????????????????????????????????????????????????? | +----------------------------------------------------+ Best States ------------- Heat Dissipation 62 Energy Generation 18 Energy Capacity 2160 Matter Stores 450 Matter Capacity 450 Sight Range 22 Robot Scan Range 30 Terrain Scan Density 10 Additional Mass Support 9 Armor Coverage 525 Resistance: KI 30 Evasion (%) 65 Recoil Reduction 3 Item Schematics ----------------- Hcp. Storage Unit | -7/Factory | Scanalyzed Robot Schematics ------------------ None Fabricated ------------ Nothing Alien Tech Used ----------------- None Achievements -------------- None Challenges ------------ None Game ------ Seed TransmissionHardcellPit Manual? 0 Play Time 01:44:55 Cumulative 921.7 hours Start 2020.03.01 @ 21:57:29 End 2020.03.01 @ 23:47:22 Sessions 1 Manual Loads 0 Difficulty Rogue Special Mode None Game No. 357 Rogue 357 Adventurer 0 Explorer 0 Win Type - Total 23 Types 13/1/7/0/0/0/2 Lore% 96 Gallery% 96 Achievement% 83 Wizard Run 0 Options --------- ASCII 0 Keyboard 0 Movement Vi Keybinds 0 Fullscreen 0 Font 12/Crisp Map View 76x50 Tactical HUD 1 Map Filters NONE Filters NONE Steam 1 RUN: 0c32d197-c8bb-467d-b982-a9cc561dbc7d